[Event "*** Titled Tuesday Blitz"]
[Site "Chess.com"]
[Date "2021.04.27"]
[Round "2"]
[White "SPEEDSKATER"]
[Black "gross-aleks"]
[Result "0-1"]
[WhiteElo "2776"]
[BlackElo "2562"]
[TimeControl "180+1"]
[EndTime "10:18:29 PDT"]
[Termination "gross-aleks won by resignation"]

1. d4 {[%clk 0:03:00.9]} 1... Nf6 {[%clk 0:02:59.3]} 2. c4 {[%clk 0:03:00.7]}
2... e6 {[%clk 0:02:59.8]} 3. Nf3 {[%clk 0:03:00.3]} 3... b6 {[%clk 0:02:58.8]}
4. g3 {[%clk 0:02:59.7]} 4... Ba6 {[%clk 0:02:59.3]} 5. Nbd2 {[%clk 0:02:58.3]}
5... c5 {[%clk 0:02:57.3]} 6. Bg2 {[%clk 0:02:57.2]} 6... Bb7 {[%clk 0:02:57]}
7. e4 {[%clk 0:02:47.9]} 7... cxd4 {[%clk 0:02:19.3]} 8. O-O {[%clk 0:02:44.9]}
8... Nxe4 {[%clk 0:02:00]} 9. Ne5 {[%clk 0:02:28.6]} 9... d5 {[%clk 0:01:50.9]}
10. cxd5 {[%clk 0:02:16.7]} 10... exd5 {[%clk 0:01:50.9]} 11. Qa4+ {[%clk
0:02:07]} 11... Nd7 {[%clk 0:01:39.4]} 12. Bh3 {[%clk 0:02:06.6]} 12... Nc5
{[%clk 0:01:37.2]} 13. Qxd4 {[%clk 0:02:00.9]} 13... Qf6 {[%clk 0:01:27.2]} 14.
Ndf3 {[%clk 0:01:57.3]} 14... Bd6 {[%clk 0:01:21.4]} 15. Nxd7 {[%clk 0:01:17.3]}
15... Qxd4 {[%clk 0:01:20.7]} 16. Nxd4 {[%clk 0:01:17.1]} 16... Nxd7 {[%clk
0:01:19.5]} 17. Re1+ {[%clk 0:01:17]} 17... Kd8 {[%clk 0:01:18.1]} 18. Nf5
{[%clk 0:01:13.2]} 18... Be5 {[%clk 0:01:16]} 19. Bg5+ {[%clk 0:01:02.8]} 19...
f6 {[%clk 0:01:15.5]} 20. Nxg7 {[%clk 0:00:50.7]} 20... fxg5 {[%clk 0:01:04.8]}
21. Ne6+ {[%clk 0:00:49.7]} 21... Ke7 {[%clk 0:01:03.9]} 22. Nxg5 {[%clk
0:00:40.9]} 22... Kf6 {[%clk 0:00:40.8]} 23. Nf3 {[%clk 0:00:31.5]} 23... Bxb2
{[%clk 0:00:36.7]} 24. Rab1 {[%clk 0:00:31.1]} 24... Ne5 {[%clk 0:00:36]} 25.
Nd2 {[%clk 0:00:19.7]} 25... Bc3 {[%clk 0:00:34.7]} 26. f4 {[%clk 0:00:19.7]}
26... Nc4 {[%clk 0:00:30]} 27. Re6+ {[%clk 0:00:19.5]} 27... Kf7 {[%clk
0:00:29.6]} 28. Nf3 {[%clk 0:00:19.3]} 28... h6 {[%clk 0:00:26.1]} 29. Rc1
{[%clk 0:00:18.2]} 29... Bf6 {[%clk 0:00:25.6]} 30. Rce1 {[%clk 0:00:17.6]}
30... Rhe8 {[%clk 0:00:24.8]} 31. Bg4 {[%clk 0:00:17.6]} 31... Rxe6 {[%clk
0:00:24.4]} 32. Bxe6+ {[%clk 0:00:17.8]} 32... Kg7 {[%clk 0:00:24.2]} 33. g4
{[%clk 0:00:16.8]} 33... Re8 {[%clk 0:00:23.9]} 34. g5 {[%clk 0:00:16.5]} 34...
Bc3 {[%clk 0:00:23.8]} 35. Re2 {[%clk 0:00:13.6]} 35... Nd6 {[%clk 0:00:20.8]}
36. Kf2 {[%clk 0:00:05.5]} 36... d4 {[%clk 0:00:20.6]} 37. f5 {[%clk 0:00:05.2]}
37... hxg5 {[%clk 0:00:20.3]} 38. Nxg5 {[%clk 0:00:04.9]} 38... d3 {[%clk
0:00:20.2]} 39. Re3 {[%clk 0:00:05.4]} 39... Bd4 {[%clk 0:00:19.9]} 40. h4
{[%clk 0:00:05.5]} 40... d2 {[%clk 0:00:19]} 41. Ke2 {[%clk 0:00:05.8]} 41...
Bxe3 {[%clk 0:00:18.8]} 42. Kxe3 {[%clk 0:00:06.3]} 42... d1=Q {[%clk
0:00:18.1]} 0-1

[Event "*** Titled Tuesday Blitz"]
[Site "Chess.com"]
[Date "2021.04.27"]
[Round "2"]
[White "kaumandur01"]
[Black "ajdemipopushi"]
[Result "0-1"]
[WhiteElo "2740"]
[BlackElo "2343"]
[TimeControl "180+1"]
[EndTime "10:18:30 PDT"]
[Termination "ajdemipopushi won by checkmate"]

1. Nf3 {[%clk 0:03:00.9]} 1... c5 {[%clk 0:02:59.7]} 2. e4 {[%clk 0:03:00.7]}
2... g6 {[%clk 0:02:59.5]} 3. c3 {[%clk 0:03:00]} 3... d5 {[%clk 0:02:59.3]} 4.
e5 {[%clk 0:03:00.1]} 4... Nc6 {[%clk 0:02:58.9]} 5. d4 {[%clk 0:03:00.7]} 5...
Bg4 {[%clk 0:02:58.1]} 6. Bb5 {[%clk 0:02:59.7]} 6... cxd4 {[%clk 0:02:47]} 7.
cxd4 {[%clk 0:03:00.6]} 7... Rc8 {[%clk 0:02:44.4]} 8. Nbd2 {[%clk 0:02:55.2]}
8... Qb6 {[%clk 0:02:37.8]} 9. Bxc6+ {[%clk 0:02:54.5]} 9... Rxc6 {[%clk
0:02:36]} 10. O-O {[%clk 0:02:54.3]} 10... e6 {[%clk 0:02:29.6]} 11. h3 {[%clk
0:02:53.3]} 11... Bxf3 {[%clk 0:02:24.4]} 12. Nxf3 {[%clk 0:02:54.2]} 12... Bg7
{[%clk 0:02:11.5]} 13. b3 {[%clk 0:02:48.6]} 13... Nh6 {[%clk 0:01:52.2]} 14.
Ba3 {[%clk 0:02:47.8]} 14... Bf8 {[%clk 0:01:48.1]} 15. Bb2 {[%clk 0:02:30.8]}
15... Be7 {[%clk 0:01:40.5]} 16. g4 {[%clk 0:02:09.8]} 16... O-O {[%clk
0:01:26]} 17. Qd2 {[%clk 0:02:00.6]} 17... Kg7 {[%clk 0:01:25.2]} 18. Bc1 {[%clk
0:02:00.3]} 18... Ng8 {[%clk 0:01:24.9]} 19. Qf4 {[%clk 0:01:51.4]} 19... h6
{[%clk 0:01:16.5]} 20. h4 {[%clk 0:01:49.8]} 20... Rfc8 {[%clk 0:01:14.1]} 21.
Be3 {[%clk 0:01:43.2]} 21... Rc3 {[%clk 0:01:05.9]} 22. Rfc1 {[%clk 0:01:31.1]}
22... Qd8 {[%clk 0:01:05.3]} 23. Rxc3 {[%clk 0:01:29.6]} 23... Rxc3 {[%clk
0:01:04.7]} 24. g5 {[%clk 0:01:21.8]} 24... h5 {[%clk 0:01:04.4]} 25. Rc1 {[%clk
0:01:12.6]} 25... Qc8 {[%clk 0:00:50.6]} 26. Kg2 {[%clk 0:01:08.4]} 26... Rxc1
{[%clk 0:00:48.6]} 27. Bxc1 {[%clk 0:01:09.3]} 27... Qc2 {[%clk 0:00:48.5]} 28.
Qd2 {[%clk 0:01:08.8]} 28... Qe4 {[%clk 0:00:46.1]} 29. Qe3 {[%clk 0:01:06.3]}
29... Qb1 {[%clk 0:00:43.6]} 30. a4 {[%clk 0:01:04.8]} 30... Bb4 {[%clk
0:00:41.3]} 31. Bd2 {[%clk 0:01:05]} 31... Bxd2 {[%clk 0:00:32.5]} 32. Nxd2
{[%clk 0:01:05.9]} 32... Qc2 {[%clk 0:00:30]} 33. Qf4 {[%clk 0:00:59.8]} 33...
Qd3 {[%clk 0:00:29.9]} 34. Qe3 {[%clk 0:00:45.2]} 34... Qf5 {[%clk 0:00:29.2]}
35. f3 {[%clk 0:00:36.1]} 35... Ne7 {[%clk 0:00:26.3]} 36. Qc3 {[%clk
0:00:28.9]} 36... Qf4 {[%clk 0:00:23.9]} 37. Nf1 {[%clk 0:00:19.5]} 37... Nf5
{[%clk 0:00:20.6]} 38. Qc8 {[%clk 0:00:14.2]} 38... Nxh4+ {[%clk 0:00:19.7]} 39.
Kh3 {[%clk 0:00:14.5]} 39... Nxf3 {[%clk 0:00:19]} 40. Qd8 {[%clk 0:00:13.7]}
40... Nxg5+ {[%clk 0:00:18.6]} 41. Kg2 {[%clk 0:00:14.6]} 41... Ne4 {[%clk
0:00:18.3]} 42. Nh2 {[%clk 0:00:13.5]} 42... Qg3+ {[%clk 0:00:17.4]} 43. Kf1
{[%clk 0:00:14.4]} 43... Qf2# {[%clk 0:00:17.6]} 0-1

[Event "*** Titled Tuesday Blitz"]
[Site "Chess.com"]
[Date "2021.04.27"]
[Round "2"]
[White "Pelopidass"]
[Black "anon6121824"]
[Result "0-1"]
[WhiteElo "2549"]
[BlackElo "2800"]
[TimeControl "180+1"]
[EndTime "10:18:31 PDT"]
[Termination "anon6121824 won by checkmate"]

1. e4 {[%clk 0:03:00.9]} 1... d6 {[%clk 0:02:52.9]} 2. d4 {[%clk 0:02:55.9]}
2... Nf6 {[%clk 0:02:53.5]} 3. Nc3 {[%clk 0:02:55.3]} 3... g6 {[%clk 0:02:53]}
4. h4 {[%clk 0:02:54.1]} 4... h5 {[%clk 0:02:50.8]} 5. Bg5 {[%clk 0:02:53.4]}
5... Bg7 {[%clk 0:02:50.9]} 6. Qd2 {[%clk 0:02:53.6]} 6... c6 {[%clk 0:02:48.9]}
7. Nge2 {[%clk 0:02:53.3]} 7... Nbd7 {[%clk 0:02:46.9]} 8. Ng3 {[%clk
0:02:53.7]} 8... Qc7 {[%clk 0:02:44.2]} 9. a4 {[%clk 0:02:50.8]} 9... e5 {[%clk
0:02:35.1]} 10. Be2 {[%clk 0:02:31.8]} 10... Nf8 {[%clk 0:02:31.3]} 11. d5
{[%clk 0:02:21]} 11... Bd7 {[%clk 0:02:23.5]} 12. a5 {[%clk 0:02:18.5]} 12...
N8h7 {[%clk 0:02:22]} 13. a6 {[%clk 0:02:16.3]} 13... bxa6 {[%clk 0:02:12.6]}
14. Rxa6 {[%clk 0:02:09.4]} 14... O-O {[%clk 0:02:12.3]} 15. O-O {[%clk
0:02:03.4]} 15... cxd5 {[%clk 0:02:10.8]} 16. exd5 {[%clk 0:01:57.4]} 16... Rab8
{[%clk 0:02:08.4]} 17. b3 {[%clk 0:01:36.5]} 17... Rfc8 {[%clk 0:02:08]} 18. Bc4
{[%clk 0:01:36.3]} 18... Nxg5 {[%clk 0:01:44.4]} 19. hxg5 {[%clk 0:01:37.2]}
19... Ne8 {[%clk 0:01:38.3]} 20. Nge4 {[%clk 0:01:36.7]} 20... Bf8 {[%clk
0:01:37.2]} 21. Rfa1 {[%clk 0:01:35.5]} 21... Rb7 {[%clk 0:01:37.3]} 22. Qe3
{[%clk 0:01:32.5]} 22... Ra8 {[%clk 0:01:29.6]} 23. g3 {[%clk 0:01:29]} 23...
Be7 {[%clk 0:01:29.5]} 24. Kg2 {[%clk 0:01:28.3]} 24... Ng7 {[%clk 0:01:29.4]}
25. Nf6+ {[%clk 0:01:22.6]} 25... Bxf6 {[%clk 0:01:29.4]} 26. gxf6 {[%clk
0:01:23.5]} 26... Nf5 {[%clk 0:01:30.3]} 27. Qg5 {[%clk 0:01:21.8]} 27... Rb4
{[%clk 0:01:20.7]} 28. Ne4 {[%clk 0:00:54.4]} 28... Rxc4 {[%clk 0:01:20.4]} 29.
bxc4 {[%clk 0:00:55.3]} 29... Qxc4 {[%clk 0:01:21.3]} 30. Nxd6 {[%clk
0:00:26.4]} 30... Qxd5+ {[%clk 0:01:20.9]} 31. Kg1 {[%clk 0:00:22]} 31... Nd4
{[%clk 0:01:04.8]} 32. Qh6 {[%clk 0:00:18.1]} 32... Nf3+ {[%clk 0:00:48.3]} 33.
Kf1 {[%clk 0:00:14.5]} 33... Bh3+ {[%clk 0:00:46.6]} 34. Ke2 {[%clk 0:00:14.7]}
34... Nd4+ {[%clk 0:00:30.4]} 35. Ke1 {[%clk 0:00:14]} 35... Nxc2+ {[%clk
0:00:26.2]} 36. Ke2 {[%clk 0:00:14]} 36... Bg4+ {[%clk 0:00:26.5]} 37. f3 {[%clk
0:00:11]} 37... Nd4+ {[%clk 0:00:23.9]} 38. Ke1 {[%clk 0:00:08.8]} 38... Nxf3+
{[%clk 0:00:21.9]} 39. Kf2 {[%clk 0:00:08.6]} 39... Qd4+ {[%clk 0:00:20.3]} 40.
Kg2 {[%clk 0:00:08.4]} 40... Qb2+ {[%clk 0:00:19.3]} 41. Kf1 {[%clk 0:00:08]}
41... Bh3# {[%clk 0:00:18.6]} 0-1

[Event "*** Titled Tuesday Blitz"]
[Site "Chess.com"]
[Date "2021.04.27"]
[Round "2"]
[White "shaheus"]
[Black "TokChess"]
[Result "0-1"]
[WhiteElo "2144"]
[BlackElo "2404"]
[TimeControl "180+1"]
[EndTime "10:18:32 PDT"]
[Termination "TokChess won on time"]

1. e4 {[%clk 0:03:00.9]} 1... c6 {[%clk 0:02:58.3]} 2. Nf3 {[%clk 0:03:01]} 2...
d5 {[%clk 0:02:58.7]} 3. Nc3 {[%clk 0:03:01.4]} 3... dxe4 {[%clk 0:02:58.1]} 4.
Nxe4 {[%clk 0:03:01.2]} 4... Nf6 {[%clk 0:02:59]} 5. Qe2 {[%clk 0:03:00.3]} 5...
Nxe4 {[%clk 0:02:52.1]} 6. Qxe4 {[%clk 0:02:59.9]} 6... Nd7 {[%clk 0:02:52.4]}
7. Bc4 {[%clk 0:02:59.2]} 7... Nf6 {[%clk 0:02:51.9]} 8. Ne5 {[%clk 0:02:57.7]}
8... e6 {[%clk 0:02:45]} 9. Qe2 {[%clk 0:02:52.2]} 9... Bd6 {[%clk 0:02:40.1]}
10. O-O {[%clk 0:02:45.7]} 10... O-O {[%clk 0:02:36.4]} 11. Re1 {[%clk
0:02:43.9]} 11... Qc7 {[%clk 0:01:40.5]} 12. d4 {[%clk 0:02:40.5]} 12... b5
{[%clk 0:01:39.5]} 13. Bd3 {[%clk 0:02:38.8]} 13... c5 {[%clk 0:01:12.3]} 14.
Bxb5 {[%clk 0:02:06.9]} 14... cxd4 {[%clk 0:01:05.1]} 15. Bd3 {[%clk 0:01:52.7]}
15... Bb7 {[%clk 0:01:01.8]} 16. Bg5 {[%clk 0:01:49.9]} 16... Nd7 {[%clk
0:00:53.9]} 17. Qh5 {[%clk 0:01:06.7]} 17... f5 {[%clk 0:00:40.4]} 18. Nxd7
{[%clk 0:00:57.6]} 18... Qxd7 {[%clk 0:00:41.3]} 19. Bc4 {[%clk 0:00:44.7]}
19... Rae8 {[%clk 0:00:37.8]} 20. Qe2 {[%clk 0:00:31.6]} 20... Kh8 {[%clk
0:00:29]} 21. Rad1 {[%clk 0:00:19.4]} 21... e5 {[%clk 0:00:25.6]} 22. f3 {[%clk
0:00:19.8]} 22... e4 {[%clk 0:00:21]} 23. fxe4 {[%clk 0:00:11.8]} 23... fxe4
{[%clk 0:00:21.9]} 24. Qh5 {[%clk 0:00:11.1]} 24... Qf5 {[%clk 0:00:17.7]} 25.
Rf1 {[%clk 0:00:09]} 25... Qg6 {[%clk 0:00:16.8]} 26. Qxg6 {[%clk 0:00:08.8]}
26... hxg6 {[%clk 0:00:17.6]} 27. Rxf8+ {[%clk 0:00:08.9]} 27... Rxf8 {[%clk
0:00:17.5]} 28. Rf1 {[%clk 0:00:06.4]} 28... Rc8 {[%clk 0:00:10.4]} 29. b3
{[%clk 0:00:06]} 29... Be5 {[%clk 0:00:04.3]} 30. Rf7 {[%clk 0:00:05.4]} 30...
Bc6 {[%clk 0:00:02.2]} 31. Kf2 {[%clk 0:00:05.2]} 31... Kh7 {[%clk 0:00:02]} 32.
Re7 {[%clk 0:00:04.6]} 32... e3+ {[%clk 0:00:02.4]} 33. Ke2 {[%clk 0:00:03.8]}
33... Bxh2 {[%clk 0:00:02.5]} 0-1

[Event "*** Titled Tuesday Blitz"]
[Site "Chess.com"]
[Date "2021.04.27"]
[Round "2"]
[White "TST2014"]
[Black "Chernov_Alexander_A"]
[Result "1-0"]
[WhiteElo "2667"]
[BlackElo "2314"]
[TimeControl "180+1"]
[EndTime "10:18:33 PDT"]
[Termination "TST2014 won on time"]

1. d4 {[%clk 0:03:00.9]} 1... Nf6 {[%clk 0:02:58.7]} 2. c4 {[%clk 0:03:00.5]}
2... e6 {[%clk 0:02:58.5]} 3. Nf3 {[%clk 0:03:00.1]} 3... b6 {[%clk 0:02:57]} 4.
a3 {[%clk 0:02:59.3]} 4... Bb7 {[%clk 0:02:57.2]} 5. Nc3 {[%clk 0:02:58.9]} 5...
d5 {[%clk 0:02:57.3]} 6. cxd5 {[%clk 0:02:57.2]} 6... Nxd5 {[%clk 0:02:57.6]} 7.
e3 {[%clk 0:02:56.6]} 7... Be7 {[%clk 0:02:56.6]} 8. Bb5+ {[%clk 0:02:55.8]}
8... c6 {[%clk 0:02:55.7]} 9. Bd3 {[%clk 0:02:55.1]} 9... c5 {[%clk 0:02:54.7]}
10. Bb5+ {[%clk 0:02:53.7]} 10... Bc6 {[%clk 0:02:49.8]} 11. Qa4 {[%clk
0:02:52.8]} 11... Bxb5 {[%clk 0:02:47.1]} 12. Qxb5+ {[%clk 0:02:52.7]} 12... Qd7
{[%clk 0:02:47]} 13. Qxd7+ {[%clk 0:02:36.5]} 13... Nxd7 {[%clk 0:02:45.4]} 14.
Nxd5 {[%clk 0:02:36.6]} 14... exd5 {[%clk 0:02:44.4]} 15. b3 {[%clk 0:02:31.5]}
15... c4 {[%clk 0:02:38.8]} 16. bxc4 {[%clk 0:02:28.2]} 16... dxc4 {[%clk
0:02:38.3]} 17. a4 {[%clk 0:02:28.7]} 17... O-O {[%clk 0:02:30]} 18. Ba3 {[%clk
0:02:28.4]} 18... Bxa3 {[%clk 0:02:27.3]} 19. Rxa3 {[%clk 0:02:28.8]} 19... Rfc8
{[%clk 0:02:26.5]} 20. Kd2 {[%clk 0:02:22]} 20... a6 {[%clk 0:02:26.2]} 21. Rb1
{[%clk 0:02:21.2]} 21... Rab8 {[%clk 0:02:22.3]} 22. Kc3 {[%clk 0:02:08.8]}
22... f6 {[%clk 0:02:11.2]} 23. e4 {[%clk 0:02:07]} 23... b5 {[%clk 0:02:10.8]}
24. axb5 {[%clk 0:02:06.7]} 24... axb5 {[%clk 0:02:08.4]} 25. Kb4 {[%clk
0:02:05.1]} 25... Nb6 {[%clk 0:01:44.3]} 26. Ra5 {[%clk 0:01:50.9]} 26... Na4
{[%clk 0:01:41.1]} 27. Rc1 {[%clk 0:01:49.1]} 27... Nb2 {[%clk 0:01:33.2]} 28.
Ne1 {[%clk 0:01:41.3]} 28... Nd3+ {[%clk 0:01:25.9]} 29. Nxd3 {[%clk 0:01:40.8]}
29... cxd3 {[%clk 0:01:25.5]} 30. Rc5 {[%clk 0:01:19]} 30... d2 {[%clk
0:00:48.7]} 31. Ra1 {[%clk 0:01:16.7]} 31... Rd8 {[%clk 0:00:41.1]} 32. d5
{[%clk 0:01:12.7]} 32... Ra8 {[%clk 0:00:32.8]} 33. Rd1 {[%clk 0:01:08]} 33...
Ra4+ {[%clk 0:00:29]} 34. Kxb5 {[%clk 0:01:02.3]} 34... Ra2 {[%clk 0:00:24.5]}
35. Rc3 {[%clk 0:00:53.6]} 35... f5 {[%clk 0:00:20.3]} 36. f3 {[%clk 0:00:51.5]}
36... fxe4 {[%clk 0:00:18.4]} 37. fxe4 {[%clk 0:00:51.4]} 37... Rb8+ {[%clk
0:00:14.2]} 38. Kc4 {[%clk 0:00:50.4]} 38... Ra4+ {[%clk 0:00:09.8]} 39. Kd3
{[%clk 0:00:50.1]} 39... Rbb4 {[%clk 0:00:08.1]} 40. Rxd2 {[%clk 0:00:35.3]}
40... Rd4+ {[%clk 0:00:05.1]} 41. Ke3 {[%clk 0:00:31.6]} 41... Rxe4+ {[%clk
0:00:04.1]} 42. Kf2 {[%clk 0:00:31.9]} 42... Rf4+ {[%clk 0:00:02.9]} 43. Rf3
{[%clk 0:00:31.8]} 1-0

[Event "*** Titled Tuesday Blitz"]
[Site "Chess.com"]
[Date "2021.04.27"]
[Round "2"]
[White "gmpeter008"]
[Black "Make_it_shine060"]
[Result "1-0"]
[WhiteElo "2423"]
[BlackElo "2188"]
[TimeControl "180+1"]
[EndTime "10:18:34 PDT"]
[Termination "gmpeter008 won on time"]

1. d4 {[%clk 0:03:00.9]} 1... Nf6 {[%clk 0:02:58.2]} 2. Bf4 {[%clk 0:03:00.8]}
2... g6 {[%clk 0:02:55.4]} 3. Nf3 {[%clk 0:02:59]} 3... Bg7 {[%clk 0:02:54.3]}
4. g3 {[%clk 0:02:59.4]} 4... O-O {[%clk 0:02:53.6]} 5. Bg2 {[%clk 0:02:59.7]}
5... d5 {[%clk 0:02:51.5]} 6. O-O {[%clk 0:02:59.1]} 6... c5 {[%clk 0:02:51.2]}
7. c3 {[%clk 0:02:59.3]} 7... Nc6 {[%clk 0:02:49.6]} 8. Nbd2 {[%clk 0:02:59.2]}
8... Ne4 {[%clk 0:02:38.4]} 9. Ne5 {[%clk 0:02:55]} 9... cxd4 {[%clk 0:02:35.1]}
10. Nxe4 {[%clk 0:02:51.7]} 10... dxe4 {[%clk 0:02:32.7]} 11. Nxc6 {[%clk
0:02:51.2]} 11... bxc6 {[%clk 0:02:31.3]} 12. Bxe4 {[%clk 0:02:51.5]} 12... e5
{[%clk 0:01:55.2]} 13. Bxc6 {[%clk 0:02:46]} 13... Rb8 {[%clk 0:01:49.2]} 14.
Bd2 {[%clk 0:02:41.8]} 14... Rxb2 {[%clk 0:01:45.6]} 15. cxd4 {[%clk 0:02:41.2]}
15... Qxd4 {[%clk 0:01:42.7]} 16. Be3 {[%clk 0:02:41]} 16... Qg4 {[%clk
0:01:27.6]} 17. Bf3 {[%clk 0:02:35]} 17... Qb4 {[%clk 0:01:21.9]} 18. Bxa7
{[%clk 0:02:30.5]} 18... e4 {[%clk 0:01:19.3]} 19. Bg2 {[%clk 0:02:29.8]} 19...
Rd2 {[%clk 0:01:17.2]} 20. Rb1 {[%clk 0:02:25.8]} 20... Qa5 {[%clk 0:01:14.4]}
21. Bb6 {[%clk 0:02:25.4]} 21... Qxa2 {[%clk 0:01:08.4]} 22. Qc1 {[%clk
0:02:09.4]} 22... Rxe2 {[%clk 0:01:04.7]} 23. Bc5 {[%clk 0:02:02.6]} 23... Rd8
{[%clk 0:01:00.2]} 24. Rb8 {[%clk 0:02:01]} 24... Rc2 {[%clk 0:00:58.3]} 25. Qg5
{[%clk 0:01:52.9]} 25... f6 {[%clk 0:00:57]} 26. Qe3 {[%clk 0:01:42.2]} 26...
Rb2 {[%clk 0:00:39.8]} 27. Rxb2 {[%clk 0:01:33.6]} 27... Qxb2 {[%clk 0:00:40.7]}
28. Qxe4 {[%clk 0:01:32.5]} 28... Bf5 {[%clk 0:00:36.7]} 29. Qe7 {[%clk
0:01:27.2]} 29... Rc8 {[%clk 0:00:32.3]} 30. Bb7 {[%clk 0:01:24.7]} 30... Rxc5
{[%clk 0:00:23.6]} 31. Qxc5 {[%clk 0:01:18.3]} 31... Qxb7 {[%clk 0:00:22.9]} 32.
Rd1 {[%clk 0:01:12.3]} 32... Bh3 {[%clk 0:00:15.6]} 33. Qc4+ {[%clk 0:00:58.8]}
33... Kf8 {[%clk 0:00:12.5]} 34. Qc5+ {[%clk 0:00:52.4]} 34... Kg8 {[%clk
0:00:10.9]} 35. f3 {[%clk 0:00:46.8]} 35... Be6 {[%clk 0:00:06]} 36. Qd6 {[%clk
0:00:41.6]} 36... Bf7 {[%clk 0:00:04.3]} 37. Qd3 {[%clk 0:00:36.9]} 37... f5
{[%clk 0:00:03.2]} 38. Rb1 {[%clk 0:00:33.6]} 38... Qa7+ {[%clk 0:00:02.8]} 39.
Kg2 {[%clk 0:00:32.7]} 39... Qa2+ {[%clk 0:00:02.2]} 40. Kh3 {[%clk 0:00:33]}
40... Qa8 {[%clk 0:00:01.5]} 41. Qd6 {[%clk 0:00:31.8]} 1-0

[Event "*** Titled Tuesday Blitz"]
[Site "Chess.com"]
[Date "2021.04.27"]
[Round "2"]
[White "Keks2017"]
[Black "Agoking701"]
[Result "1-0"]
[WhiteElo "2459"]
[BlackElo "2252"]
[TimeControl "180+1"]
[EndTime "10:18:37 PDT"]
[Termination "Keks2017 won on time"]

1. g3 {[%clk 0:03:00.1]} 1... e5 {[%clk 0:02:57.4]} 2. Bg2 {[%clk 0:03:00]} 2...
Nf6 {[%clk 0:02:56.3]} 3. d3 {[%clk 0:03:00.1]} 3... d5 {[%clk 0:02:54.6]} 4.
Nf3 {[%clk 0:02:59.3]} 4... Nc6 {[%clk 0:02:54.9]} 5. O-O {[%clk 0:02:59.2]}
5... Be7 {[%clk 0:02:49.6]} 6. c3 {[%clk 0:02:58.8]} 6... O-O {[%clk 0:02:47.9]}
7. Qc2 {[%clk 0:02:58.7]} 7... a5 {[%clk 0:02:46.5]} 8. Nbd2 {[%clk 0:02:58.4]}
8... Bg4 {[%clk 0:02:43.9]} 9. b3 {[%clk 0:02:55]} 9... h6 {[%clk 0:02:37]} 10.
a3 {[%clk 0:02:54.2]} 10... Qd7 {[%clk 0:02:35]} 11. Re1 {[%clk 0:02:53.6]}
11... Rfe8 {[%clk 0:02:31.5]} 12. Bb2 {[%clk 0:02:52.8]} 12... Bf8 {[%clk
0:02:31.5]} 13. e4 {[%clk 0:02:52.5]} 13... Rad8 {[%clk 0:02:27.2]} 14. b4
{[%clk 0:02:50.6]} 14... b5 {[%clk 0:01:16.7]} 15. Rac1 {[%clk 0:02:43.2]} 15...
dxe4 {[%clk 0:00:50.9]} 16. dxe4 {[%clk 0:02:41.9]} 16... Qe6 {[%clk 0:00:46.8]}
17. Bf1 {[%clk 0:02:32.3]} 17... Na7 {[%clk 0:00:42.9]} 18. Be2 {[%clk
0:02:06.7]} 18... c5 {[%clk 0:00:36.4]} 19. bxa5 {[%clk 0:01:55.6]} 19... Qc6
{[%clk 0:00:29.9]} 20. c4 {[%clk 0:01:50.5]} 20... b4 {[%clk 0:00:28.8]} 21.
Nxe5 {[%clk 0:01:40.5]} 21... Qe6 {[%clk 0:00:13.3]} 22. Nxg4 {[%clk 0:01:35]}
22... Nxg4 {[%clk 0:00:14.2]} 23. Bxg4 {[%clk 0:01:20.7]} 23... Qxg4 {[%clk
0:00:13.9]} 24. f3 {[%clk 0:01:19.1]} 24... Qg5 {[%clk 0:00:12.8]} 25. Nf1
{[%clk 0:01:17.6]} 25... Nc6 {[%clk 0:00:10.9]} 26. a6 {[%clk 0:01:16.4]} 26...
Ra8 {[%clk 0:00:08.3]} 27. Rcd1 {[%clk 0:01:16.2]} 27... Rxa6 {[%clk 0:00:07.6]}
28. Rd5 {[%clk 0:01:15.7]} 28... Qe7 {[%clk 0:00:07.8]} 29. Ne3 {[%clk
0:01:04.7]} 29... bxa3 {[%clk 0:00:07.1]} 30. Nf5 {[%clk 0:00:58.6]} 30... Qb7
{[%clk 0:00:06.6]} 31. Ba1 {[%clk 0:00:58.2]} 31... Nb4 {[%clk 0:00:05.4]} 32.
Qc3 {[%clk 0:00:57.2]} 32... Nxd5 {[%clk 0:00:05.5]} 33. cxd5 {[%clk 0:00:57.3]}
33... Qb4 {[%clk 0:00:05.9]} 34. Nxh6+ {[%clk 0:00:37.1]} 34... Kh7 {[%clk
0:00:03.3]} 35. Nxf7 {[%clk 0:00:36.1]} 35... Qxc3 {[%clk 0:00:02.8]} 36. Bxc3
{[%clk 0:00:36.1]} 36... c4 {[%clk 0:00:03.3]} 37. Ng5+ {[%clk 0:00:35.3]} 37...
Kg8 {[%clk 0:00:02.2]} 38. Ne6 {[%clk 0:00:34.9]} 38... Rexe6 {[%clk 0:00:01.2]}
39. dxe6 {[%clk 0:00:34.4]} 39... Bc5+ {[%clk 0:00:02.1]} 40. Kf1 {[%clk
0:00:32.6]} 40... Rxe6 {[%clk 0:00:02.5]} 41. Rb1 {[%clk 0:00:21.6]} 41... Ra6
{[%clk 0:00:02.5]} 42. Rb7 {[%clk 0:00:19.2]} 1-0